fUST/lending_fUST_20240325
["ID","MTS","AMOUNT","RATE_DAILY","PERIOD"]
[320394353,1711345849166,-642.06225062,0.00054794,120]
[320394354,1711345849175,-500.0,0.00054794,120]
[320394355,1711345849185,-221.3441844,0.00054794,120]
[320394356,1711345849194,-500.0,0.00054794,120]
[320394357,1711345849204,-500.66657318,0.00054794,120]
[320394358,1711345849213,-500.0,0.00054794,120]
[320394359,1711345849223,-500.0,0.00054794,120]
[320394360,1711345849232,-501.21693039,0.00054794,120]
[320394361,1711345849246,-500.0,0.00054794,120]
[320394362,1711345849255,-562.05683264,0.00054794,120]
[320394363,1711345849265,-500.0,0.00054794,120]
[320394364,1711345849275,-500.0,0.00054794,120]
[320394365,1711345849284,-500.0,0.00054794,120]
[320394366,1711345849294,-841.68,0.00054794,120]
[320394367,1711345849303,-500.0,0.00054794,120]
[320394368,1711345849314,-743.39,0.00054794,120]
[320394369,1711345849323,-500.0,0.00054794,120]
[320394370,1711345849333,-500.0,0.00054794,120]
[320394371,1711345849343,-1304.67,0.00054794,120]
[320394372,1711345849353,-500.0,0.00054794,120]
[320394373,1711345849362,-500.0,0.00054794,120]
[320394374,1711345849372,-500.0,0.00054794,120]
[320394375,1711345849383,-1092.4,0.00054794,120]
[320394376,1711345849394,-500.0,0.00054794,120]
[320394377,1711345849404,-500.0,0.00054794,120]
[320394378,1711345849414,-513.22,0.00054794,120]
[320394379,1711345849423,-377.621982,0.00054794,120]
[320394380,1711345849432,-500.0,0.00054794,120]
[320394381,1711345849442,-501.17736553,0.00054794,120]
[320394382,1711345849452,-1494.2,0.00054794,120]
[320394383,1711345849461,-502.04583221,0.00054794,120]
[320394384,1711345849471,-500.0,0.00054794,120]
[320394385,1711345849480,-500.0,0.00054794,120]
[320394386,1711345849490,-838.359953,0.00054794,7]
[320394387,1711345849498,-609.48,0.00054794,120]
[320394388,1711345849508,-500.0,0.00054794,120]
[320394389,1711345849517,-838.359953,0.00054794,7]
[320394390,1711345849527,-838.359953,0.00054794,7]
[320394391,1711345849537,-838.359953,0.00054794,7]
[320394392,1711345849548,-500.0,0.00054794,120]
[320394393,1711345849557,-360.24723897,0.00054794,120]
[320394394,1711345849567,-500.0,0.00054794,120]
[320394395,1711345849576,-500.0,0.00054794,120]
[320394396,1711345849586,-796.28,0.00054794,120]
[320394397,1711345849595,-493.04045885,0.00054794,120]
[320394398,1711345849605,-500.0,0.00054794,60]
[320394399,1711345849614,-500.0,0.00054794,120]
[320394400,1711345849623,-500.0,0.00054794,120]
[320394401,1711345849632,-500.0,0.00054794,120]
[320394402,1711345849640,-500.0,0.00054794,120]
[320394403,1711345849650,-500.0,0.00054794,120]
[320394404,1711345849659,-500.0,0.00054794,120]
[320394405,1711345849668,-500.0,0.00054794,120]
[320394406,1711345849678,-167.11700765,0.00054794,120]
[320394407,1711345849689,-500.0,0.00054794,120]
[320394408,1711345849699,-1192.99,0.00054794,120]
[320394409,1711345849709,-500.0,0.00054794,120]
[320394410,1711345849718,-500.0,0.00054794,120]
[320394411,1711345849727,-501.48139517,0.00054794,120]
[320394412,1711345849736,-500.0,0.00054794,120]
[320394413,1711345849746,-500.0,0.00054794,120]
[320394414,1711345849755,-552.51946969,0.00054794,120]
[320394415,1711345849764,-500.0,0.00054794,120]
[320394416,1711345849774,-508.59802354,0.00054794,120]
[320394417,1711345849783,-289.17288432,0.00054794,120]
[320394418,1711345849792,-500.85585803,0.00054794,120]
[320394419,1711345849801,-500.0,0.00054794,120]
[320394420,1711345849811,-500.0,0.00054794,120]
[320394421,1711345849820,-502.19698142,0.00054794,120]
[320394422,1711345849830,-500.0,0.00054794,120]
[320394423,1711345849839,-500.0,0.00054794,120]
[320394424,1711345849849,-300.92335218,0.00054794,120]
[320394425,1711345849860,-1103.88,0.00054794,120]
[320394426,1711345849870,-461.237844,0.00054794,120]
[320394427,1711345849880,-500.0,0.00054794,120]
[320394428,1711345849889,-500.0,0.00054794,120]
[320394429,1711345849899,-500.0,0.00054794,120]
[320394430,1711345849908,-500.0,0.00054794,120]
[320394431,1711345849918,-500.0,0.00054794,120]
[320394432,1711345849927,-1778.63,0.00054794,120]
[320394433,1711345849937,-500.0,0.00054794,120]
[320394434,1711345849946,-1103.82,0.00054794,120]
[320394435,1711345849955,-521.47,0.00054794,120]
[320394436,1711345849965,-500.0,0.00054794,120]
[320394437,1711345849974,-153.7937,0.00054794,7]
[320394438,1711345849984,-163.322975,0.00054794,7]
[320394439,1711345849994,-163.322975,0.00054794,7]
[320394440,1711345850009,-501.55061403,0.00054794,120]
[320394441,1711345850019,-163.322975,0.00054794,7]
[320394442,1711345850029,-163.322975,0.00054794,7]
[320394443,1711345850039,-500.5814886,0.00054794,120]
[320394444,1711345850049,-500.0,0.00054794,120]
[320394445,1711345850058,-500.0,0.00054794,120]
[320394446,1711345850069,-500.0,0.00054794,120]
[320394447,1711345850079,-501.07255001,0.00054794,120]
[320394448,1711345850089,-3343.25,0.00054794,120]
[320394449,1711345850100,-500.0,0.00054794,120]
[320394450,1711345850109,-500.0,0.00054794,120]
[320394451,1711345850118,-13385.87,0.00054794,120]
[320394452,1711345850127,-500.0,0.00054794,120]
[320394453,1711345850136,-652.93,0.00054794,120]
[320394454,1711345850146,-369.98194466,0.00054794,120]
[320394455,1711345850156,-15939.53,0.00054794,90]
[320394456,1711345850166,-819.33,0.00054794,120]
[320394457,1711345850175,-500.0,0.00054794,120]
[320394458,1711345850185,-859.696584,0.00054794,7]
[320394459,1711345850194,-859.696584,0.00054794,7]
[320394460,1711345850203,-500.0,0.00054794,120]
[320394461,1711345850213,-2365.2,0.00054794,120]
[320394462,1711345850222,-1458.59,0.00054794,120]
[320394463,1711345850232,-156.22539732,0.00054794,120]
[320394464,1711345850244,-859.696584,0.00054794,7]
[320394465,1711345850254,-859.696584,0.00054794,7]
[320394466,1711345850264,-500.0,0.00054794,120]
[320394467,1711345850275,-500.0,0.00054794,120]
[320394468,1711345850286,-501.48975995,0.00054794,120]
[320394469,1711345850296,-574.69,0.00054794,120]
[320394470,1711345850305,-500.0,0.00054794,120]
[320394471,1711345850315,-500.0,0.00054794,120]
[320394472,1711345850325,-500.0,0.00054794,120]
[320394473,1711345850335,-3420.35,0.00054794,21]
[320394474,1711345850345,-500.0,0.00054794,120]
[320394475,1711345850355,-500.0,0.00054794,120]
[320394476,1711345850364,-500.0,0.00054794,120]
[320394477,1711345850374,-500.0,0.00054794,120]
[320394478,1711345850383,-500.6630388,0.00054794,120]
[320394479,1711345850393,-500.0,0.00054794,120]
[320394480,1711345850402,-500.3836584,0.00054794,120]
[320394481,1711345850413,-500.0,0.00054794,120]
[320394482,1711345850422,-501.34349592,0.00054794,7]
[320394483,1711345850432,-649.6,0.00054794,120]
[320394484,1711345850441,-151.0,0.00054794,7]
[320394485,1711345850451,-151.0,0.00054794,7]
[320394486,1711345850461,-151.0,0.00054794,7]
[320394487,1711345850470,-500.0,0.00054794,120]
[320394488,1711345850480,-500.0,0.00054794,120]
[320394489,1711345850489,-500.25129488,0.00054794,120]
[320394490,1711345850499,-1282.56,0.00054794,120]
[320394491,1711345850509,-500.0,0.00054794,120]
[320394492,1711345850519,-500.0,0.00054794,120]
[320394493,1711345850528,-500.0,0.00054794,120]
[320394494,1711345850538,-716.07,0.00054794,120]
[320394495,1711345850639,-500.0,0.00054794,120]
[320394496,1711345850651,-500.0,0.00054794,120]
[320394497,1711345850661,-500.0,0.00054794,120]
[320394498,1711345850672,-501.41818917,0.00054794,120]
[320394499,1711345850683,-500.0,0.00054794,120]
[320394500,1711345850693,-503.44844302,0.00054794,120]
[320394501,1711345850707,-500.76933057,0.00054794,120]
[320394502,1711345850717,-2606.42,0.00054794,120]
[320394503,1711345850727,-500.0,0.00054794,120]
[320394504,1711345850736,-500.0,0.00054794,120]
[320394505,1711345850746,-3447.13,0.00054794,120]
[320394506,1711345850755,-500.0,0.00054794,120]
[320394507,1711345850764,-407.5440183,0.00054794,120]
[320394508,1711345850773,-500.0,0.00054794,120]
[320394509,1711345850782,-291.90951773,0.00054794,120]
[320394510,1711345938059,150.59564404,0.00030511,7]
[320394511,1711345938535,150.59564404,0.00031571,7]
[320394512,1711345941720,151.77830393,0.00030436,7]
[320394513,1711345942383,123.99788099,0.00041138,30]
[320394514,1711346032454,7581.26487068,0.0002,2]
[320394580,1711346526800,15750.0,0.0002,2]
[320394581,1711346537356,150.59564405,0.00024487,2]
[320394582,1711346745255,-150.59564405,0.00027834,2]
[320394583,1711346745276,-535.87708587,0.00029482,2]
[320394584,1711346745298,-535.87708587,0.00029482,2]
[320394585,1711346745319,-167.80647004,0.0003,2]
[320394586,1711346745340,-377.10786181,0.0003,10]
[320394587,1711346745359,-864.85949629,0.0003,2]
[320394588,1711346825117,-920.79514438,0.00028007,2]
[320394589,1711346825137,-677.7441716,0.00028537,2]
[320394590,1711346825157,-683.96804349,0.00029481,2]
[320394591,1711346825177,-154.95351395,0.00029481,2]
[320394592,1711346825198,-15370.6746685,0.00029482,2]
[320394593,1711346840096,-153.63033212,0.00025095,2]
[320394594,1711346840118,-7884.53451042,0.00029482,2]
[320394595,1711346840139,-1922.02642136,0.00029482,2]
[320394596,1711346840161,-160.87070723,0.00029482,2]
[320394597,1711346840182,-275.7283,0.00029482,2]
[320394598,1711346840203,-471.05027514,0.00029482,2]
[320394599,1711346840224,-877.46470654,0.00029482,2]
[320394600,1711346840245,-500.0,0.00029482,2]
[320394601,1711346840267,-500.0,0.00029482,2]
[320394602,1711346840288,-500.0,0.00029482,2]
[320394603,1711346840310,-500.0,0.00029482,2]
[320394604,1711346840332,-500.0,0.00029482,2]
[320394605,1711346840356,-500.0,0.00029482,2]
[320394606,1711346840377,-500.0,0.00029482,2]
[320394607,1711346840398,-500.0,0.00029482,2]
[320394608,1711346840419,-500.0,0.00029482,2]
[320394609,1711346840439,-500.0,0.00029482,2]
[320394610,1711346840460,-174.33218154,0.00029482,2]
[320394611,1711346840481,-500.0,0.00029482,2]
[320394612,1711346840501,-500.0,0.00029482,2]
[320394613,1711346840522,-500.0,0.00029482,2]
[320394614,1711346840542,-500.0,0.00029482,2]
[320394615,1711346840566,-500.0,0.00029482,2]
[320394616,1711346840587,-163.03660758,0.00029482,2]
[320394617,1711346840607,-288.31631193,0.00029482,2]
[320394618,1711346840628,-4704.74879012,0.000297,2]
[320394619,1711346840649,-6567.07985669,0.0003,2]
[320394620,1711346840669,-215.83160644,0.0003,120]
[320394621,1711346840690,-271.0,0.0003,2]
[320394622,1711346840710,-3493.98331443,0.0003,4]
[320394623,1711346841332,150.59564405,0.00024374,2]
[320394624,1711346945108,-153.63033212,0.00026106,2]
[320394625,1711346945128,-150.0,0.00029,7]
[320394626,1711346945151,-289.48019501,0.00029482,2]
[320394627,1711346945173,-254.50842042,0.00029482,2]
[320394628,1711346945196,-15686.9014046,0.0003,4]
[320394629,1711346945217,-153.63033212,0.00030417,7]
[320394630,1711346945238,-1951.98532295,0.00031,2]
[320394631,1711346945259,-150.0,0.00032,60]
[320394632,1711346945280,-343.353246,0.00033573,2]
[320394633,1711346945300,-150.58578001,0.00036172,120]
[320394634,1711346945320,-1440.0,0.00037,120]
[320394635,1711346945342,-203.75248,0.00038745,120]
[320394636,1711346945363,-187.0,0.00039,120]
[320394637,1711346945384,-1205.20024178,0.000405,30]
[320394638,1711346945406,-500.0,0.00041096,31]
[320394639,1711346945428,-500.0,0.00041096,31]
[320394640,1711346945449,-500.0,0.00041096,31]
[320394641,1711346945470,-500.0,0.00041096,31]
[320394642,1711346945491,-500.0,0.00041096,31]
[320394643,1711346945511,-500.0,0.00041096,31]
[320394644,1711346945532,-500.0,0.00041096,31]
[320394645,1711346945552,-500.0,0.00041096,31]
[320394646,1711346945573,-500.0,0.00041096,31]
[320394647,1711346945596,-241.98611113,0.00041096,31]
[320394648,1711346945617,-500.0,0.00041096,31]
[320394649,1711346945638,-500.0,0.00041096,31]
[320394650,1711346945661,-500.0,0.00041096,31]
[320394651,1711346945688,-150.59564405,0.00041583,30]
[320394652,1711346945709,-150.0,0.000429,39]
[320394653,1711346945729,-153.63033212,0.00043712,30]
[320394654,1711346945750,-153.63033212,0.00045103,30]
[320394655,1711346945777,-153.63033212,0.00046036,30]
[320394656,1711346945798,-173.476741,0.00046138,2]
[320394657,1711346945818,-153.63033212,0.00046312,30]
[320394658,1711346945839,-10699.61778106,0.00046575,120]
[320394659,1711346948137,-2003.27221894,0.00046575,120]
[320394660,1711346948160,-12702.89,0.00046575,120]
[320394661,1711346948183,-5603.51416106,0.00047919,61]
[320394662,1711346959129,-2000.0,0.00028539,2]
[320394663,1711346959149,-2000.0,0.00028684,2]
[320394664,1711346959169,-2000.0,0.00028829,2]
[320394665,1711346959190,-8025.20676508,0.00047919,61]
[320394666,1711346959210,-20154.64083102,0.00047919,30]
[320394667,1711346959230,-203.75248,0.00048432,120]
[320394668,1711346968124,-200.0,0.000496,30]
[320394669,1711346968144,-153.63033212,0.00049865,30]
[320394670,1711346968166,-3038.83349191,0.0005,120]
[320394671,1711346968186,-2679.78492633,0.0005,60]
[320394672,1711346968205,-343.353246,0.0005036,2]
[320394673,1711346968229,-153.63033212,0.00050981,60]
[320394674,1711346968251,-150.87929656,0.00051219,2]
[320394675,1711346971349,-150.59564405,0.00051887,60]
[320394676,1711346971370,-12702.89,0.00052053,120]
[320394677,1711346971390,-12702.89,0.00052053,120]
[320394678,1711346971412,-153.63033212,0.000521,60]
[320394679,1711346971432,-29936.6082659,0.00053627,120]
[320394680,1711346971452,-1000.0,0.00054,120]
[320394681,1711346971472,-155.53665283,0.00054246,3]
[320394682,1711346973401,5697.15941248,0.00049315,120]
[320394683,1711346973425,648.09604496,0.00049315,120]
[320394684,1711346979950,150.87929656,0.00048304,2]
[320394685,1711346980021,301.75859313,0.00049116,4]
[320394686,1711347007548,644.38028265,0.000282,2]
[320394718,1711347029009,500.0,0.0004,120]
[320394722,1711347031730,500.0,0.00049314,120]
[320394726,1711347031794,500.0,0.00049314,120]
[320394736,1711347031852,500.0,0.00049314,120]
[320394740,1711347031886,372.59583334,0.00049314,120]
[320394775,1711347032900,500.0,0.00029465,2]
[320394776,1711347032961,352.70357573,0.00029465,2]
[320394905,1711347044055,-308.38521992,0.00029466,2]
[320394906,1711347044064,-68640.0750262,0.00029466,2]
[320394907,1711347044092,-1235.21,0.00029466,2]
[320394908,1711347044139,-0.02159302,0.00029466,2]
[320394909,1711347044154,-314.12661001,0.00029466,2]
[320394939,1711347048199,930.89185044,0.00029465,2]
[320394940,1711347050144,395.08121162,0.00029465,2]
[320394941,1711347050167,104.91878838,0.00029465,2]
[320394942,1711347050263,500.0,0.00029465,2]
[320394943,1711347050323,500.0,0.00029465,2]
[320394944,1711347050357,500.0,0.00029465,2]
[320394945,1711347050385,500.0,0.00029465,2]
[320394946,1711347050418,500.0,0.00029465,2]
[320394947,1711347050445,500.0,0.00029465,2]
[320394948,1711347050487,500.0,0.00029465,2]
[320394949,1711347050512,500.0,0.00029465,2]
[320394950,1711347050538,215.65252114,0.00029465,2]
[320394951,1711347050672,500.0,0.00029465,2]
[320394952,1711347053921,835.66559505,0.00029465,2]
[320394953,1711347053943,1329.06924866,0.00029465,2]
[320394956,1711347581999,40000.0,0.00026,15]
[320394957,1711347640945,20000.0,0.00027,30]
[320394958,1711348145252,-166.666666,0.00025687,2]
[320394959,1711348145275,-47788.22303294,0.00026258,2]
[320394960,1711348145297,-7282.6001994,0.00026259,2]
[320394961,1711348145320,-384.3887951,0.00026277,2]
[320394962,1711348145341,-380.0,0.00026279,2]
[320394963,1711348145363,-222.3802272,0.00026299,2]
[320394964,1711348145384,-250.0,0.00026327,2]
[320394965,1711348145406,-166.666666,0.00026387,2]
[320394966,1711348145427,-798.2124528,0.00026392,2]
[320394967,1711348145449,-190.136394,0.00026393,2]
[320394968,1711348145470,-200.0,0.00026443,2]
[320394969,1711348145491,-500.0,0.00026743,2]
[320394970,1711348145514,-166.666666,0.00027087,2]
[320394971,1711348145535,-166.666666,0.00027788,2]
[320394972,1711348145556,-151.67819944,0.00027962,2]
[320394973,1711348145577,-203.0,0.000284,2]
[320394974,1711348145602,-166.666666,0.00028488,2]
[320394975,1711348145623,-154.46633972,0.00028607,2]
[320394976,1711348145645,-187.42827192,0.00028959,2]
[320394977,1711348145667,-500.0,0.00029058,2]
[320394978,1711348145688,-365.30151581,0.00029058,2]
[320394979,1711348145711,-500.0,0.00029058,2]
[320394980,1711348145733,-500.0,0.00029058,2]
[320394981,1711348145756,-500.0,0.00029058,2]
[320394982,1711348145779,-500.0,0.00029058,2]
[320394983,1711348145801,-500.0,0.00029058,2]
[320394984,1711348145823,-500.0,0.00029058,2]
[320394985,1711348145844,-535.87708587,0.00029058,2]
[320394986,1711348145866,-535.87708587,0.00029058,2]
[320394987,1711348145888,-166.666666,0.00029188,2]
[320394988,1711348145908,-840.66755067,0.00029464,2]
[320394989,1711348145929,-1475.78282209,0.00029464,2]
[320394990,1711348145956,-205.78788409,0.00029464,2]
[320394991,1711348145979,-155.60766489,0.00029464,2]
[320394992,1711348145999,-212.24459519,0.00029464,2]
[320394993,1711348146022,-1266.77206567,0.00029465,2]
[320394994,1711348146043,-154.46633972,0.00031034,7]
[320394995,1711348146064,-154.46633972,0.00032115,7]
[320394996,1711348146084,-1822.42783438,0.00035,2]
[320394997,1711348146105,-169.94400268,0.00035,4]
[320394998,1711348146126,-203.75248,0.00035616,120]
[320394999,1711348146146,-187.42827189,0.00037148,2]
[320395000,1711348146169,-150.87929656,0.00039034,2]
[320395001,1711348146189,-153.87956729,0.00039622,7]
[320395002,1711348146212,-301.75859313,0.0003969,4]
[320395003,1711348146235,-603.51718625,0.00040357,7]
[320395004,1711348146380,-166.86043165,0.00041036,4]
[320395005,1711348146401,-153.87956729,0.00044882,30]
[320395006,1711348146423,-187.42827189,0.00045336,2]
[320395007,1711348146446,-2758.907326,0.00046,54]
[320395008,1711348146470,-154.46633972,0.00046433,30]
[320395009,1711348146493,-764.21009477,0.00048,90]
[320395010,1711348146537,-275.38556658,0.00048,90]
[320395011,1711348148701,-6005.4280407,0.00049075,120]
[320395012,1711348148723,-500.0,0.00049084,120]
[320395013,1711348148745,-500.0,0.00049084,120]
[320395014,1711348148766,-500.0,0.00049084,120]
[320395015,1711348148788,-500.0,0.00049084,120]
[320395016,1711348148811,-500.0,0.00049084,120]
[320395017,1711348148835,-500.0,0.00049084,120]
[320395018,1711348148858,-641.61170876,0.00049084,120]
[320395019,1711348148880,-10000.0,0.00049088,60]
[320395020,1711348148901,-1883.30131368,0.00049313,4]
[320395021,1711348148920,-311.71981373,0.00049313,4]
[320395022,1711348148945,-11223.85508792,0.00049315,61]
[320395023,1711348148966,-13672.3,0.00049315,120]
[320395024,1711348148987,-13672.3,0.00049315,120]
[320395025,1711348149008,-13672.3,0.00049315,120]
[320395026,1711348149031,-13672.3,0.00049315,120]
[320395027,1711348149051,-2143.82794106,0.0005,60]
[320395028,1711348149072,-500.0,0.0005,120]
[320395029,1711348149092,-3199.952,0.0005,4]
[320395030,1711348149114,-154.46633972,0.0005177,60]
[320395031,1711348149133,-153.87956729,0.00053286,60]
[320395032,1711348149153,-36491.77685773,0.00053524,120]
[320395033,1711348149174,-187.42827189,0.00053525,2]
[320395034,1711348149195,-76435.49461136,0.00053526,2]
[320395035,1711348180270,11393.58,0.00049315,120]
[320395036,1711348180821,789.32844811,0.00049315,120]
[320395037,1711348180844,4183.8,0.00049315,120]
[320395044,1711348232406,429.4779462,0.00049314,120]
[320395080,1711348238217,2082.77466787,0.00049314,7]
[320395118,1711348242154,-498.96348114,0.00029038,2]
[320395121,1711348242170,-6722.8,0.00029038,2]
[320395152,1711348243105,-306.0,0.00029038,2]
[320395176,1711348246260,-20264.46466777,0.00029038,2]
[320395177,1711348246269,-776.19349407,0.00029038,2]
[320395178,1711348246279,-284.61900804,0.00029038,2]
[320395179,1711348246288,-3144.44896988,0.00029038,2]
[320395180,1711348246304,-150.0,0.00029038,2]
[320395181,1711348246314,-5431.75738533,0.00029038,7]
[320395182,1711348246323,-250.51017703,0.00029038,2]
[320395183,1711348246332,-10861.16762914,0.00029038,2]
[320395184,1711348246342,-455.5588883,0.00029038,2]
[320395185,1711348246352,-262.42178609,0.00029038,2]
[320395186,1711348246362,-4006.88630236,0.00029038,2]
[320395187,1711348246371,-1000.8795682,0.00029038,2]
[320395188,1711348246381,-1098.26853208,0.00029038,2]
[320395189,1711348246391,-151.89542778,0.00029038,2]
[320395190,1711348246400,-6420.45155189,0.00049315,120]
[320395191,1711348246409,-11393.58,0.00049315,120]
[320395192,1711348246418,-11393.58,0.00049315,120]
[320395193,1711348246427,-11393.58,0.00049315,120]
[320395194,1711348246437,-2143.82794106,0.0005,60]
[320395195,1711348246447,-11393.58,0.00053423,120]
[320395196,1711348246456,-7698.14,0.00053424,120]
[320395197,1711348246466,-3199.952,0.00053524,4]
[320395198,1711348246475,-500.0,0.00053524,120]
[320395199,1711348246484,-592.48351263,0.00053524,120]
[320395200,1711348246493,-11393.58,0.00053525,120]
[320395201,1711348246502,-11393.58,0.00053525,120]
[320395202,1711348246512,-11393.58,0.00053525,120]
[320395203,1711348246521,-11393.58,0.00053525,120]
[320395204,1711348246531,-11393.58,0.00053525,120]
[320395205,1711348246541,-17706.16625287,0.00053525,4]
[320395206,1711348246553,-5611.92754395,0.00053526,61]
[320395207,1711348246565,-138812.67780376,0.00053526,2]
[320395208,1711348246575,-11393.58,0.00053625,120]
[320395209,1711348246585,-1500.0,0.00054,120]
[320395210,1711348246595,-4995.98876822,0.00054,2]
[320395211,1711348246605,-157.69688412,0.00054246,3]
[320395212,1711348246615,-105752.99531551,0.00054348,120]
[320395213,1711348246625,-105752.99531551,0.00054394,120]
[320395214,1711348246635,-105752.99531551,0.00054399,120]
[320395215,1711348246648,-2787.37848714,0.000544,7]
[320395216,1711348246658,-11393.58,0.00054688,120]
[320395217,1711348246668,-2771.02102104,0.00054693,2]
[320395218,1711348246678,-400.0,0.000547,33]
[320395219,1711348246687,-5848.1694114,0.00054791,120]
[320395220,1711348342461,153.87956729,0.00048031,30]
[320395221,1711348342737,154.46633974,0.00032944,7]
[320395233,1711349135529,-223.76770619,0.00039999,2]
[320395234,1711349231094,-991.06738593,0.00039998,4]
[320395235,1711349240088,-153.87956729,0.00033383,7]
[320395236,1711349240109,-154.46633975,0.000338,7]
[320395237,1711349240130,-1822.42783438,0.00039997,2]
[320395238,1711349240151,-1469.65753721,0.00039998,4]
[320395239,1711349345099,-15245.44132973,0.00039998,4]
[320395240,1711349345119,-1822.42783438,0.00039998,2]
[320395241,1711349345141,-500.0,0.00039999,31]
[320395242,1711349345162,-500.0,0.00039999,31]
[320395243,1711349345184,-500.0,0.00039999,31]
[320395244,1711349345204,-537.68797191,0.00039999,31]
[320395245,1711349345225,-500.0,0.00039999,31]
[320395246,1711349345244,-72633.87601181,0.0004,77]
[320395247,1711349345264,-163.21639112,0.00043599,11]
[320395248,1711349345419,-249.90436257,0.00043699,2]
[320395249,1711349345439,-3464.29858752,0.00043799,2]
[320395250,1711349346118,-5772.03798765,0.00043799,2]
[320395251,1711349346139,-5419.4714057,0.000439,90]
[320395252,1711349346161,-1113.361763,0.0004547,120]
[320395253,1711349346182,-5941.05011955,0.00046,2]
[320395254,1711349363105,-150.0,0.000418,2]
[320395255,1711349363125,-5572.84433045,0.00046,2]
[320395256,1711349363144,-150.0,0.00046,54]
[320395257,1711349363172,-304.99265647,0.00046572,15]
[320395258,1711349363198,-150.0,0.000468,2]
[320395259,1711349363219,-500.0,0.00049314,2]
[320395260,1711349363242,-481.91119976,0.00049314,2]
[320395261,1711349363263,-2143.82794106,0.0005,60]
[320395262,1711349363283,-688.8180531,0.0005,4]
[320395372,1711349438998,-2082.77466787,0.00049999,7]
[320395373,1711349439008,-1077.41320138,0.0005,2]
[320395374,1711349439017,-2143.82794106,0.0005,60]
[320395375,1711349439026,-3199.952,0.00052053,4]
[320395376,1711349439036,-11679.8,0.00052054,120]
[320395377,1711349439045,-11679.8,0.00052054,120]
[320395378,1711349439054,-11679.8,0.00052054,120]
[320395379,1711349439063,-150.87929656,0.00052186,2]
[320395380,1711349439072,-559.14192461,0.00053049,120]
[320395400,1711349440352,-554.21983839,0.00053049,120]
[320395401,1711349440364,-301.75859313,0.00053063,4]
[320395402,1711349440373,-2351.42156848,0.00053524,120]
[320395465,1711349446410,-9328.37843152,0.00053524,120]
[320395466,1711349446422,-150.56440505,0.00053525,120]
[320395467,1711349446435,-1500.0,0.00054,120]
[320395468,1711349446447,-4995.98876922,0.00054,2]
[320395469,1711349446460,-281.96533021,0.00054198,120]
[320395470,1711349446472,-2500.0,0.000542,120]
[320395471,1711349446484,-157.45685842,0.00054246,3]
[320395472,1711349446496,-24323.1889226,0.00054356,120]
[320395473,1711349446507,-24323.1889226,0.00054361,120]
[320395474,1711349446519,-654.65436769,0.00054368,120]
[320395475,1711349446531,-654.65436769,0.00054377,120]
[320395476,1711349446543,-654.65436769,0.00054378,120]
[320395477,1711349446556,-24323.1889226,0.00054398,120]
[320395478,1711349446568,-153.87956729,0.00054403,60]
[320395479,1711349446580,-500.0,0.00054693,120]
[320395480,1711349446591,-500.0,0.00054693,120]
[320395481,1711349446604,-500.0,0.00054693,120]
[320395482,1711349446615,-500.0,0.00054693,120]
[320395483,1711349446628,-500.0,0.00054693,120]
[320395484,1711349446639,-500.0,0.00054693,120]
[320395485,1711349446651,-500.0,0.00054693,120]
[320395486,1711349446662,-500.0,0.00054693,120]
[320395487,1711349446673,-209.37412666,0.00054693,120]
[320395488,1711349446684,-500.0,0.00054693,120]
[320395489,1711349446696,-196.24934098,0.00054693,120]
[320395490,1711349446708,-500.0,0.00054693,120]
[320395491,1711349446719,-500.0,0.00054693,120]
[320395492,1711349446731,-500.0,0.00054693,120]
[320395493,1711349446743,-500.0,0.00054693,120]